bitfinex/quotes_SOLUSD_20240717
["timestamp","ask_amount","ask_price","bid_price","bid_amount"]
[1721221690332,51.1969,161.37,161.33,30.0]
[1721221691288,45.0,161.37,161.33,31.23962001]
[1721221691488,45.0,161.38,161.33,31.23962001]
[1721221691884,51.1966,161.38,161.33,30.0]
[1721221692083,45.0,161.38,161.33,31.23956842]
[1721221692686,51.1966,161.38,161.33,30.0]
[1721221693182,35.725,161.42,161.33,31.2395681]
[1721221693387,15.9544,161.45,161.33,30.0]
[1721221693609,6.1947,161.43,161.33,30.0]
[1721221694117,6.195,161.42,161.34,1.23920761]
[1721221694319,6.195,161.42,161.33,30.0]
[1721221694525,6.195,161.42,161.34,1.23930109]
[1721221694724,45.0,161.41,161.35,30.0]
[1721221695121,45.0,161.42,161.35,30.0]
[1721221696426,45.0,161.42,161.36,1.23922229]
[1721221696635,45.0,161.42,161.36,31.23921523]
[1721221696924,45.0,161.42,161.36,30.0]
[1721221697300,51.195,161.42,161.36,30.0]
[1721221697500,45.0,161.42,161.37,1.23922081]
[1721221697728,45.0,161.42,161.37,30.0]
[1721221697933,51.195,161.42,161.37,30.0]
[1721221698135,6.1955,161.41,161.37,30.0]
[1721221698437,45.0,161.4,161.37,30.0]
[1721221698604,45.0,161.42,161.37,30.0]
[1721221698806,6.1958,161.4,161.37,30.0]
[1721221699108,45.0,161.39,161.37,30.0]
[1721221699825,45.0,161.4,161.37,30.0]
[1721221700343,6.1965,161.38,161.37,30.0]
[1721221700511,45.0,161.38,161.37,30.0]
[1721221703140,45.0,161.38,161.33,6.46861239]
[1721221703340,45.0,161.37,161.34,30.0]
[1721221704057,51.197,161.37,161.34,30.0]
[1721221704234,6.1973,161.36,161.34,30.0]
[1721221704436,45.0,161.35,161.34,30.0]
[1721221704660,45.0,161.35,161.29,6.47049209]
[1721221704849,45.0,161.36,161.3,30.0]
[1721221705739,20.0,161.35,161.3,30.0]
[1721221705959,45.0,161.34,161.3,30.0]
[1721221707173,51.1977,161.35,161.3,30.0]
[1721221708650,45.3333,161.39,161.3,30.0]
[1721221708853,6.1972,161.37,161.3,30.0]
[1721221709157,26.1975,161.36,161.3,30.0]
[1721221709361,20.0,161.35,161.3,30.0]
[1721221709735,26.1978,161.35,161.3,30.0]
[1721221709940,45.0,161.34,161.3,30.0]
[1721221710358,14.78,161.33,161.3,30.0]
[1721221710568,45.0,161.32,161.3,30.0]
[1721221711560,14.78,161.31,161.3,30.0]
[1721221711746,59.78,161.31,161.3,30.0]
[1721221711948,45.0,161.31,161.3,30.0]
[1721221712462,59.78,161.31,161.26,14.78]
[1721221712639,45.0,161.3,161.27,30.0]
[1721221713664,45.0,161.3,161.27,31.24001805]
[1721221713866,45.0,161.31,161.27,31.24001805]
[1721221714252,45.0,161.31,161.27,30.0]
[1721221714656,45.0,161.31,161.28,14.78]
[1721221714984,45.0,161.32,161.28,14.78]
[1721221715271,45.0,161.33,161.29,1.23994317]
[1721221715451,45.0,161.34,161.29,44.78]
[1721221715765,45.0,161.34,161.3,1.23983573]
[1721221715943,45.0,161.34,161.29,44.78]
[1721221716145,59.78,161.34,161.29,44.78]
[1721221716360,45.0,161.34,161.3,16.0198328]
[1721221716564,45.0,161.34,161.3,46.0198328]
[1721221716750,45.0,161.34,161.3,44.78]
[1721221717069,59.78,161.34,161.3,30.0]
[1721221718373,65.9781,161.34,161.3,30.0]
[1721221718562,14.78,161.33,161.3,30.0]
[1721221718745,45.0,161.32,161.3,30.0]
[1721221718951,14.78,161.31,161.3,30.0]
[1721221719261,59.78,161.31,161.3,30.0]
[1721221719563,45.0,161.31,161.3,30.0]
[1721221722859,45.0,161.31,161.27,30.0]
[1721221723171,6.2003,161.28,161.27,30.0]
[1721221723373,40.9803,161.28,161.22,14.78]
[1721221723666,59.78,161.27,161.22,14.78]
[1721221723880,59.78,161.27,161.23,30.0]
[1721221724048,51.2008,161.27,161.23,30.0]
[1721221724246,14.78,161.26,161.23,30.0]
[1721221724449,45.0,161.25,161.23,30.0]
[1721221724975,20.0,161.24,161.23,30.0]
[1721221725165,79.78,161.24,161.23,30.0]
[1721221725469,65.0,161.24,161.23,30.0]
[1721221725656,79.78,161.24,161.23,30.0]
[1721221726554,85.9819,161.24,161.23,30.0]
[1721221726961,85.9819,161.24,161.2,15.2696]
[1721221727270,45.0,161.23,161.21,30.0]
[1721221728978,6.2008,161.27,161.21,31.24050182]
[1721221729279,6.2004,161.28,161.21,31.24050182]
[1721221729477,6.201,161.27,161.21,31.24050182]
[1721221729657,6.201,161.27,161.21,31.24040145]
[1721221729979,6.2004,161.28,161.21,31.24040145]
[1721221730272,6.2004,161.28,161.21,30.0]
[1721221730472,6.2009,161.27,161.21,30.0]
[1721221730868,6.2011,161.26,161.21,30.0]
[1721221731463,6.2008,161.27,161.22,1.24036281]
[1721221731777,45.0,161.26,161.22,31.24036281]
[1721221732492,45.0,161.26,161.22,30.0]
[1721221735279,6.2018,161.25,161.22,30.0]
[1721221735584,51.2019,161.24,161.22,30.0]
[1721221735880,45.0,161.23,161.22,30.0]
[1721221737078,51.2023,161.23,161.22,30.0]
[1721221737662,45.0,161.23,161.22,30.0]
[1721221738375,45.0,161.23,161.2,15.2696]
[1721221738577,45.0,161.24,161.2,15.2696]
[1721221739579,45.0,161.24,161.21,30.0]
[1721221739762,51.2016,161.25,161.21,30.0]
[1721221740365,45.0,161.25,161.21,30.0]
[1721221740764,6.2022,161.24,161.21,30.0]
[1721221740963,45.0,161.23,161.21,30.0]
[1721221741781,45.0,161.23,161.2,15.2696]
[1721221742984,45.0,161.24,161.2,15.2696]
[1721221743296,51.2016,161.25,161.2,15.2696]
[1721221743962,51.2016,161.25,161.2,16.51022376]
[1721221744192,51.2016,161.25,161.2,15.2696]
[1721221744373,45.0,161.25,161.2,15.2696]
[1721221744578,45.0,161.25,161.2,16.51009447]
[1721221744779,45.0,161.25,161.21,31.24049453]
[1721221744998,51.2016,161.25,161.21,30.0]
[1721221745867,6.2019,161.24,161.21,30.0]
[1721221746180,45.0,161.23,161.21,30.0]
[1721221746993,6.2027,161.22,161.21,30.0]
[1721221747300,51.2027,161.22,161.21,30.0]
[1721221747465,51.2027,161.22,161.15,23.39307442]
[1721221747664,45.0,161.21,161.16,31.24071287]
[1721221749387,45.0,161.22,161.16,31.24071287]
[1721221749580,45.0,161.23,161.16,31.24071287]
[1721221749798,51.2023,161.23,161.16,30.0]
[1721221750295,66.0023,161.23,161.17,14.8]
[1721221750478,66.0023,161.23,161.19,30.0]
[1721221751204,6.2028,161.22,161.19,30.0]
[1721221751412,45.0,161.21,161.19,30.0]
[1721221751701,66.0034,161.21,161.19,30.0]
[1721221752476,66.0034,161.21,161.15,36.95236155]
[1721221752677,66.0034,161.21,161.16,30.0]
[1721221753606,14.8,161.19,161.16,30.0]
[1721221753777,45.0,161.18,161.16,30.0]
[1721221754378,45.0,161.18,161.15,15.6849]
[1721221754609,45.0,161.18,161.15,30.4849]
[1721221754815,45.0,161.19,161.15,15.6849]
[1721221755520,45.0,161.19,161.16,30.0]
[1721221756383,45.0,161.2,161.16,30.0]
[1721221756578,45.0,161.2,161.16,31.24091813]
[1721221756806,45.0,161.2,161.16,31.24083127]
[1721221756977,59.8,161.2,161.16,30.0]
[1721221757793,45.0,161.2,161.16,30.0]
[1721221758406,45.0,161.2,161.16,44.8]
[1721221759179,45.0,161.2,161.16,30.0]
[1721221759591,59.8,161.2,161.16,30.0]
[1721221759791,66.0037,161.2,161.16,30.0]
[1721221762210,14.8,161.17,161.16,30.0]
[1721221762703,59.8,161.17,161.16,30.0]
[1721221764387,66.0046,161.17,161.16,30.0]
[1721221765390,59.8,161.17,161.11,16.4973]
[1721221765700,45.0,161.16,161.11,31.2973]
[1721221765901,45.0,161.16,161.13,30.0]
[1721221766298,14.8,161.19,161.14,16.04110936]
[1721221766498,20.0,161.18,161.14,16.04110936]
[1721221766894,20.0,161.18,161.15,30.0]
[1721221767089,20.0,161.19,161.15,30.0]
[1721221767291,26.2038,161.19,161.15,30.0]
[1721221767510,34.8,161.19,161.15,30.0]
[1721221767696,45.0,161.18,161.15,30.0]
[1721221768098,66.0042,161.18,161.15,30.0]
[1721221768297,59.8,161.18,161.15,30.0]
[1721221768499,45.0,161.18,161.15,30.0]
[1721221768908,59.8,161.18,161.15,30.0]
[1721221769121,14.8,161.16,161.15,30.0]
[1721221769305,59.8,161.16,161.15,30.0]
[1721221770103,59.8,161.16,161.12,30.0]
[1721221770410,45.0,161.15,161.12,30.0]
[1721221772498,45.0,161.15,161.11,16.4973]
[1721221774430,45.0,161.15,161.11,16.4973]
[1721221774714,45.0,161.15,161.11,31.2973]
[1721221775115,45.0,161.15,161.12,14.8]
[1721221775309,14.8,161.18,161.13,14.8]
[1721221775510,20.0,161.19,161.15,14.8]
[1721221775836,14.8,161.22,161.17,14.8]
[1721221776115,21.0036,161.2,161.15,14.8]
[1721221776316,21.0031,161.21,161.16,14.8]
[1721221776515,21.0031,161.21,161.16,30.0]
[1721221776821,21.0034,161.2,161.16,30.0]
[1721221777312,45.0,161.19,161.16,30.0]
[1721221777521,14.8,161.2,161.16,30.0]
[1721221777898,14.8,161.22,161.16,30.0]
[1721221778118,34.8,161.21,161.16,44.8]
[1721221778312,34.8,161.21,161.16,30.0]
[1721221778619,34.8,161.21,161.16,44.8]
[1721221779001,41.0031,161.21,161.16,44.8]
[1721221779196,34.8,161.21,161.16,30.0]
[1721221779410,34.8,161.21,161.16,44.8]
[1721221779621,20.0,161.21,161.17,14.8]
[1721221779810,34.8,161.22,161.17,44.8]
[1721221780126,20.0,161.22,161.18,14.8]
[1721221780295,21.002,161.24,161.18,14.8]
[1721221780296,20.0,161.23,161.18,14.8]
[1721221780721,20.0,161.23,161.18,44.8]
[1721221780909,14.8,161.25,161.19,14.8]
[1721221781225,14.8,161.25,161.2,14.8]
[1721221781421,21.0015,161.25,161.2,14.8]
[1721221781822,14.8,161.25,161.2,44.8]
[1721221782031,6.2015,161.25,161.21,14.8]
[1721221782322,20.0,161.24,161.2,44.8]
[1721221784007,26.2019,161.24,161.2,30.0]
[1721221784717,6.2023,161.23,161.2,30.0]
[1721221785115,21.0023,161.23,161.2,30.0]
[1721221786406,14.8,161.23,161.2,30.0]
[1721221787424,41.0019,161.24,161.2,30.0]
[1721221787622,20.0,161.24,161.2,30.0]
[1721221787943,14.8,161.22,161.2,30.0]
[1721221791006,14.8,161.23,161.2,30.0]
[1721221791511,21.002,161.24,161.2,30.0]
[1721221791707,20.0,161.23,161.2,30.0]
[1721221791908,26.2023,161.23,161.2,30.0]
[1721221792312,41.0023,161.23,161.2,30.0]
[1721221792619,20.0,161.23,161.2,30.0]
[1721221792925,6.203,161.22,161.2,30.0]
[1721221793123,14.8,161.21,161.2,30.0]
[1721221793520,14.8,161.22,161.2,30.0]
[1721221794325,41.0024,161.23,161.2,30.0]
[1721221794630,41.0024,161.23,161.17,30.7969]
[1721221795438,41.0024,161.23,161.18,14.8]
[1721221796021,41.0024,161.23,161.17,30.7969]
[1721221796327,21.0027,161.22,161.17,15.9969]
[1721221797628,21.0031,161.21,161.18,30.0]
[1721221797816,14.8,161.19,161.18,30.0]
[1721221798010,21.0038,161.19,161.18,30.0]
[1721221798933,41.0038,161.19,161.18,30.0]
[1721221799131,41.0038,161.19,161.11,14.8]
[1721221799437,41.0038,161.19,161.13,30.0]
[1721221799438,14.8,161.17,161.13,30.0]
[1721221800114,14.8,161.16,161.13,30.0]
[1721221801122,6.2044,161.18,161.13,30.0]
[1721221801433,14.8,161.16,161.13,30.0]
[1721221802138,20.0,161.19,161.15,14.8]
[1721221802339,20.0,161.19,161.16,14.8]
[1721221802516,20.0,161.21,161.16,14.8]
[1721221802718,34.8,161.21,161.16,14.8]
[1721221803025,14.8,161.23,161.17,1.24095417]
[1721221803334,14.8,161.23,161.17,30.0]
[1721221803335,14.8,161.22,161.17,30.0]
[1721221804138,14.8,161.21,161.17,30.0]
[1721221804528,14.8,161.22,161.17,44.8]
[1721221805034,6.5157,161.25,161.17,44.8]
[1721221805035,14.8,161.23,161.17,44.8]
[1721221805233,14.8,161.24,161.19,14.8]
[1721221805439,20.0,161.22,161.19,44.8]
[1721221805751,20.0,161.23,161.19,44.8]
[1721221805919,20.0,161.24,161.19,44.8]
[1721221806313,14.8,161.25,161.2,14.8]
[1721221806521,6.2008,161.27,161.2,30.0]
[1721221806730,21.0008,161.27,161.22,14.8]
[1721221807055,21.0008,161.27,161.21,14.8]
[1721221807429,14.8,161.26,161.21,14.8]
[1721221807752,14.8,161.26,161.22,30.0]
[1721221808050,20.0,161.25,161.22,30.0]
[1721221810025,14.8,161.25,161.22,30.0]
[1721221810225,26.2019,161.24,161.22,30.0]
[1721221810489,20.0,161.24,161.22,30.0]
[1721221810645,14.8,161.26,161.23,15.2409]
[1721221810829,21.6104,161.39,161.25,14.8]
[1721221810830,258.1,161.36,161.25,14.8]
[1721221811134,20.9989,161.32,161.27,14.8]
[1721221811332,20.9989,161.32,161.26,14.8]
[1721221811528,6.1999,161.3,161.23,45.2409]
[1721221811743,21.0,161.29,161.23,60.0409]
[1721221811944,21.0,161.29,161.25,30.0]
[1721221812458,6.2,161.29,161.25,30.0]
[1721221812755,20.0,161.28,161.25,30.0]
[1721221812960,20.0,161.28,161.25,44.8]
[1721221813256,20.0,161.29,161.25,44.8]
[1721221813648,26.2,161.29,161.25,44.8]
[1721221813839,26.2,161.29,161.25,30.0]
[1721221815076,6.2005,161.28,161.25,30.0]
[1721221815241,21.0005,161.28,161.25,30.0]
[1721221815652,34.8,161.29,161.25,30.0]
[1721221815845,20.0,161.29,161.25,30.0]
[1721221816052,41.0002,161.29,161.25,30.0]
[1721221816262,21.0002,161.29,161.24,30.0]
[1721221816467,20.0,161.28,161.24,30.0]
[1721221816643,20.0,161.28,161.24,44.8]
[1721221817154,26.2001,161.29,161.24,44.8]
[1721221817359,41.0001,161.29,161.24,44.8]
[1721221817964,41.0001,161.29,161.24,30.0]
[1721221819259,20.0,161.29,161.24,30.0]
[1721221819459,34.8,161.29,161.24,44.8]
[1721221819963,41.0,161.29,161.24,30.0]
[1721221820351,34.8,161.29,161.24,30.0]
[1721221823255,41.0001,161.29,161.24,30.0]
[1721221824778,14.8,161.28,161.24,30.0]
[1721221825159,14.8,161.25,161.24,30.0]
[1721221825369,34.8,161.25,161.19,15.2409]
[1721221825568,20.0,161.24,161.2,30.0]
[1721221825772,20.0,161.25,161.23,14.8]
[1721221826266,20.0,161.28,161.23,14.8]
[1721221826464,20.0,161.28,161.24,14.8]
[1721221826665,20.0,161.28,161.24,44.8]
[1721221827779,6.1997,161.3,161.24,44.8]
[1721221827994,20.9993,161.31,161.25,14.8]
[1721221829176,20.9993,161.31,161.24,30.0]
[1721221829177,6.1989,161.32,161.26,14.8]
[1721221829383,26.1992,161.31,161.27,30.0]
[1721221829757,6.2002,161.29,161.27,30.0]
[1721221829963,41.0003,161.28,161.27,30.0]
[1721221830280,34.8,161.28,161.19,15.2409]
[1721221830486,6.2012,161.26,161.21,44.8]
[1721221830687,21.0012,161.26,161.21,44.8]
[1721221831063,14.8,161.26,161.21,44.8]
[1721221831782,21.0015,161.25,161.21,30.0]
[1721221831982,21.002,161.24,161.21,30.0]
[1721221832171,20.0,161.23,161.21,30.0]
[1721221832370,34.8,161.23,161.21,30.0]
[1721221832564,20.0,161.23,161.21,30.0]
[1721221832786,14.8,161.22,161.21,30.0]
[1721221832955,20.0,161.22,161.15,16.1949]
[1721221833284,21.0019,161.24,161.19,14.8]
[1721221833285,20.0,161.23,161.19,14.8]
[1721221833886,20.0,161.23,161.2,14.8]
[1721221834064,20.0,161.25,161.21,44.8]
[1721221834379,20.0,161.25,161.22,14.8]
[1721221834754,6.2008,161.27,161.22,14.8]
[1721221834959,20.0,161.26,161.22,14.8]
[1721221835160,20.0,161.26,161.22,44.8]
[1721221835990,20.0,161.27,161.22,44.8]
[1721221836507,20.9997,161.3,161.24,14.8]
[1721221836663,14.8,161.31,161.23,1.2402495]
[1721221836870,14.8,161.31,161.25,14.8]
[1721221837085,14.8,161.3,161.25,14.8]
[1721221837290,20.9993,161.31,161.25,14.8]
[1721221837870,20.0,161.3,161.25,44.8]
[1721221838701,26.1996,161.3,161.25,44.8]
[1721221839392,20.0,161.3,161.26,14.8]
[1721221839701,20.0,161.3,161.26,44.8]
[1721221839872,26.1996,161.3,161.26,44.8]
[1721221840073,26.1996,161.3,161.26,30.0]
[1721221840527,6.2001,161.29,161.26,30.0]
[1721221841391,20.0,161.3,161.26,30.0]
[1721221841600,6.2007,161.27,161.26,30.0]
[1721221841785,21.0005,161.28,161.22,14.8]
[1721221841997,21.0005,161.28,161.23,30.0]
[1721221842285,20.0,161.27,161.23,30.0]
[1721221842479,20.0,161.27,161.24,14.8]
[1721221842688,20.0,161.27,161.25,14.8]
[1721221842882,14.8,161.31,161.25,14.8]
[1721221843496,26.1999,161.3,161.25,14.8]
[1721221843998,26.1999,161.3,161.21,16.565]
[1721221843999,34.8,161.3,161.21,16.565]
[1721221844292,6.2004,161.28,161.23,30.0]
[1721221844609,6.2002,161.29,161.23,30.0]
[1721221844890,20.0,161.28,161.23,30.0]
[1721221845097,20.0,161.28,161.24,1.24027895]
[1721221845277,20.0,161.31,161.26,14.8]
[1721221845984,26.1994,161.31,161.26,14.8]
[1721221846295,6.1997,161.3,161.26,44.8]
[1721221846496,20.0,161.29,161.26,44.8]
[1721221850001,20.0,161.29,161.26,30.0]
[1721221850178,34.8,161.29,161.26,30.0]
[1721221850385,6.2007,161.28,161.26,30.0]
[1721221850600,6.2007,161.27,161.26,30.0]
[1721221850806,41.0007,161.27,161.26,30.0]
[1721221851801,6.2023,161.23,161.17,29.8579]
[1721221852006,20.0,161.22,161.19,30.0]
[1721221852802,14.8,161.21,161.19,30.0]
[1721221853035,14.8,161.21,161.15,14.8]
[1721221853320,20.0,161.2,161.15,14.8]
[1721221854819,34.8,161.2,161.15,14.8]
[1721221855115,41.0035,161.2,161.15,14.8]
[1721221855295,21.0039,161.19,161.14,14.8]
[1721221855499,20.0,161.18,161.15,30.0]
[1721221857023,34.8,161.18,161.15,30.0]
[1721221857804,41.0042,161.18,161.15,30.0]
[1721221858014,14.8,161.17,161.15,30.0]
[1721221858238,20.0,161.16,161.15,30.0]
[1721221858832,20.0,161.16,161.14,30.0]
[1721221859720,34.8,161.17,161.14,30.0]
[1721221860535,20.0,161.17,161.14,30.0]
[1721221860747,20.0,161.17,161.13,16.04118147]
[1721221860748,20.0,161.17,161.15,14.8]
[1721221860925,20.0,161.19,161.15,14.8]
[1721221861423,20.0,161.2,161.15,44.8]
[1721221861631,45.0,161.19,161.15,44.8]
[1721221861931,20.0,161.18,161.15,44.8]
[1721221862123,20.0,161.18,161.15,14.8]
[1721221862324,20.0,161.18,161.14,14.8]
[1721221862927,20.0,161.18,161.15,30.0]
[1721221863939,20.0,161.18,161.14,14.8]
[1721221864236,26.2043,161.18,161.09,15.742]
[1721221864427,14.8,161.17,161.12,14.8]
[1721221864933,21.0047,161.17,161.12,14.8]
[1721221865128,20.0,161.18,161.13,14.8]
[1721221865321,14.8,161.18,161.13,14.8]
[1721221865530,21.0043,161.18,161.14,30.0]
[1721221865723,14.8,161.17,161.14,30.0]
[1721221866121,14.8,161.16,161.14,30.0]
[1721221867738,14.8,161.17,161.14,30.0]
[1721221867954,20.0,161.16,161.14,30.0]
[1721221870149,34.8,161.16,161.14,30.0]
[1721221870836,20.0,161.16,161.14,30.0]
[1721221871619,41.0051,161.16,161.14,30.0]
[1721221871824,21.0053,161.15,161.14,30.0]
[1721221872250,41.0053,161.15,161.14,30.0]
[1721221873041,41.0053,161.15,161.08,14.8]
[1721221873246,14.8,161.13,161.1,30.0]
[1721221874342,34.8,161.14,161.1,30.0]
[1721221875954,14.8,161.19,161.13,14.8]
[1721221876171,14.8,161.19,161.13,46.04098649]
[1721221877048,14.8,161.19,161.14,14.8]
[1721221877339,14.8,161.19,161.14,44.8]
[1721221877932,6.2028,161.22,161.15,14.8]
[1721221878150,21.0028,161.22,161.16,14.8]
[1721221878369,21.0031,161.21,161.16,14.8]
[1721221878663,14.8,161.21,161.16,14.8]
[1721221879234,14.8,161.21,161.16,44.8]
[1721221879436,20.0,161.2,161.16,44.8]
[1721221879963,20.0,161.2,161.16,30.0]
[1721221880687,26.2037,161.2,161.16,30.0]
[1721221880836,14.8,161.19,161.16,30.0]
[1721221881037,14.8,161.2,161.16,30.0]
[1721221881275,6.2038,161.19,161.16,30.0]
[1721221881436,21.0046,161.18,161.16,30.0]
[1721221881638,14.8,161.18,161.16,30.0]
[1721221882140,21.0039,161.19,161.16,30.0]
[1721221883483,21.0042,161.18,161.16,30.0]
[1721221883663,14.8,161.19,161.16,30.0]
[1721221886078,20.0,161.24,161.16,30.0]
[1721221886079,14.8,161.21,161.16,30.0]
[1721221886247,20.0,161.2,161.16,44.8]
[1721221886448,20.0,161.2,161.17,16.04082778]
[1721221886675,15.327,161.3,161.19,14.8]
[1721221886864,14.8,161.26,161.2,16.04054287]
[1721221887249,21.0016,161.25,161.2,1.24054287]
[1721221887558,21.0016,161.25,161.2,31.24054287]
[1721221887942,14.8,161.25,161.2,31.24054287]
[1721221888256,21.0017,161.25,161.2,30.0]
[1721221888753,30.8268,161.3,161.2,30.0]
[1721221888754,6.202,161.24,161.2,30.0]
[1721221888979,14.8,161.23,161.2,30.0]
[1721221889494,14.8,161.24,161.2,30.0]
[1721221889651,21.0016,161.25,161.2,30.0]
[1721221889853,20.0,161.24,161.2,30.0]
[1721221890082,20.0,161.24,161.2,44.8]
[1721221890289,14.8,161.26,161.21,16.04051528]
[1721221890591,6.2001,161.29,161.24,14.8]
[1721221890761,6.2005,161.28,161.24,14.8]
[1721221890970,21.0005,161.28,161.23,14.8]
[1721221891374,21.0005,161.28,161.24,30.0]
[1721221891765,20.0,161.27,161.24,30.0]
[1721221891959,14.8,161.29,161.24,46.04030523]
[1721221892172,20.9996,161.3,161.24,46.04030523]
[1721221892578,6.2,161.29,161.24,44.8]
[1721221892787,6.2004,161.28,161.24,30.0]
[1721221893458,14.8,161.29,161.24,31.24025402]
[1721221893459,21.0001,161.29,161.24,31.24025402]
[1721221893659,14.8,161.29,161.24,46.04025402]
[1721221893856,20.0,161.28,161.24,46.04025402]
[1721221894584,20.9997,161.3,161.24,46.04025402]
[1721221894585,20.0,161.29,161.25,14.8]
[1721221894797,20.0,161.29,161.25,44.8]
[1721221895665,26.2,161.29,161.25,44.8]
[1721221896690,20.0,161.29,161.25,44.8]
[1721221896941,26.2,161.29,161.25,44.8]
[1721221897228,20.0,161.29,161.26,14.8]
[1721221897416,20.0,161.3,161.26,44.8]
[1721221897809,26.1998,161.3,161.26,44.8]
[1721221898011,26.1998,161.3,161.26,30.0]
[1721221898404,26.1998,161.3,161.26,44.8]
[1721221898718,20.0,161.3,161.27,14.8]
[1721221898905,20.0,161.31,161.27,44.8]
[1721221899226,20.0,161.32,161.27,44.8]
[1721221900131,6.1989,161.32,161.28,14.8]
[1721221900335,6.1989,161.32,161.28,44.8]
[1721221900943,6.1993,161.31,161.28,44.8]
[1721221901158,5.4993,161.31,161.28,44.8]
[1721221901328,5.4993,161.31,161.28,30.0]
[1721221902746,6.1989,161.32,161.28,44.8]
[1721221902927,20.0,161.31,161.28,44.8]
[1721221903546,20.0,161.32,161.28,44.8]
[1721221903744,26.199,161.32,161.28,44.8]
[1721221904044,6.1993,161.31,161.28,44.8]
[1721221906858,6.1996,161.3,161.28,30.0]
[1721221907155,6.1993,161.31,161.28,44.8]
[1721221907954,6.1996,161.3,161.28,44.8]
[1721221908141,6.2,161.29,161.28,30.0]
[1721221908344,121.97,161.29,161.28,30.0]
[1721221908657,15.5023,161.27,161.18,30.4859]
[1721221908830,6.2029,161.22,161.2,30.0]
[1721221909030,21.0022,161.24,161.2,30.0]
[1721221909254,20.0,161.23,161.2,30.0]
[1721221909750,20.0,161.23,161.21,14.8]
[1721221909932,20.0,161.24,161.21,31.24050047]
[1721221910242,58.84170214,161.29,161.21,30.0]
[1721221910243,20.0,161.25,161.21,30.0]
[1721221910573,14.8,161.23,161.21,30.0]
[1721221910851,21.0024,161.23,161.21,30.0]
[1721221911054,14.8,161.22,161.21,30.0]
[1721221911363,21.0027,161.22,161.21,30.0]
[1721221911742,41.0027,161.22,161.21,30.0]
[1721221912835,41.0027,161.22,161.18,15.6859]
[1721221913050,34.8,161.21,161.19,30.0]
[1721221913241,14.8,161.2,161.19,30.0]